{"text_format":"3","workbook":"xlsx","n_sheets":1,"sheets":["Sheet1"],"not_rendered":{"defined_names":2},"read":"whole","date_system":"1900"}

{"sheet":"Sheet1","index":0,"n_rows":64,"n_cols":8,"rows_kept":64,"merged":[[0,0,0,7],[1,0,1,7]]}
["20-188-ITB: COMMUNITY PLANNING AND HOUSING DEPARTMENT (CPHD) INSPECTION SERVICES DIVISION (ISD) AND ZONING DIVISION UNIFORMS"]
["ATTACHMENT A"]
[]
["Item No.","Brand Name or Equivalent","Item Description","Estimated \nYearly \nQuantity","Unit of \nMeasure","Unit Price","Shipping Cost","Total \nExtension \nPrice"]
[null,null,"SECTION 1:  Shirts"]
[1,"Land's End or Equivalent","Land's End Brand 100% Pima Cotton Long Sleeve Polo Shirts with Pocket in various colors in sizes PXS – TXL3 for Men  and Women with logo above left pocket",45,"Each",{"v":0,"d":"$0.00"},{"v":0,"d":"$0.00"},{"$f":"(45*F6)+G6","v":{"v":0,"d":"$0.00"}}]
[]
[2,"Land's End or Equivalent","Land's End Brand 100% Pima Cotton Long Sleeve Polo Shirts without Pocket \nin various colors and sizes PXS – TXL3 for Men and Women with logo on left chest",45,"Each",{"v":0,"d":"$0.00"},{"v":0,"d":"$0.00"},{"$f":"(45*F8)+G8","v":{"v":0,"d":"$0.00"}}]
[]
[3,"Land's End or Equivalent","Land's End Brand 100% Pima Cotton Short Sleeve Polo Shirts with Pocket and \nsizes PXS – TXL3 for Men and Women with logo above left pocket",85,"Each",{"v":0,"d":"$0.00"},{"v":0,"d":"$0.00"},{"$f":"(85*F10)+G10","v":{"v":0,"d":"$0.00"}}]
[]
[4,"Land's End or Equivalent","Land's End Brand 100% Pima Cotton Short Sleeve Polo Shirts without Pocket and \nsizes PXS – TXL3 for Men and Women with logo on left chest",85,"Each",{"v":0,"d":"$0.00"},{"v":0,"d":"$0.00"},{"$f":"(85*F12)+G12","v":{"v":0,"d":"$0.00"}}]
[]
[5,"Land's End or Equivalent","Land's End Brand Women’s ¾ Length Sleeve Interlock, 60% cotton/40% polyester Johnny Collar Shirt \nin sizes PXS-XXXL various colors and sizes XS-XXXL with logo on left chest",25,"Each",{"v":0,"d":"$0.00"},{"v":0,"d":"$0.00"},{"$f":"(25*F14)+G14","v":{"v":0,"d":"$0.00"}}]
[]
[6,"Land's End or Equivalent","Land's End Brand Men’s Long  Sleeve Dress Shirts with pocket, \nsizes SM-XXXLT solids and prints, various colors, logo above left pocket",25,"Each",{"v":0,"d":"$0.00"},{"v":0,"d":"$0.00"},{"$f":"(25*F16)+G16","v":{"v":0,"d":"$0.00"}}]
[]
[7,"Land's End or Equivalent","Land's End Brand Women’s Long Sleeve Dress Shirts, sizes XS-XXXL solids and prints, various colors, logo on left chest",25,"Each",{"v":0,"d":"$0.00"},{"v":0,"d":"$0.00"},{"$f":"(25*F18)+G18","v":{"v":0,"d":"$0.00"}}]
[]
[8,"Land's End or Equivalent","Land's End Brand Men’s Long Sleeve Double Pocket with Flaps Work Shirts \nin sizes S-TXXXL and various colors, logo above left pocket",15,"Each",{"v":0,"d":"$0.00"},{"v":0,"d":"$0.00"},{"$f":"(15*F20)+G20","v":{"v":0,"d":"$0.00"}}]
[]
[9,"Land's End or Equivalent","Land's End Brand Men’s Short Sleeve Double Pocket with Flaps Work Shirts \nin sizes S-TXXXL and various colors, logo above left pocket",15,"Each",{"v":0,"d":"$0.00"},{"v":0,"d":"$0.00"},{"$f":"(15*F22)+G22","v":{"v":0,"d":"$0.00"}}]
[]
[10,"Land's End or Equivalent","Land's End Brand Cotton Sweater V-Neck and Round neck Vests for men and women, \nXS-XXXLT, various colors, logo on left chest",25,"Each",{"v":0,"d":"$0.00"},{"v":0,"d":"$0.00"},{"$f":"(25*F24)+G24","v":{"v":0,"d":"$0.00"}}]
[null,null,"                                                                                                                                                                                                                                                                  SECTION 1 Total",{"$nulls":4},{"$f":"SUM(H6,H8,H10,H12,H14,H16,H18,H20,H22,H24)","v":{"v":0,"d":"$0.00"}}]
[]
[null,null,"SECTION 2:  Pants"]
[11,"Tactical Brand or Equivalent","5.11 TacticalBrand Stryke style # 74369 Pants for Men, \n sizes 28-44 waist, 30-36 length, in various colors",40,"Each",{"v":0,"d":"$0.00"},{"v":0,"d":"$0.00"},{"$f":"(40*F28)+G28","v":{"v":0,"d":"$0.00"}}]
[]
[12,"Tactical Brand or Equivalentt","5.11 Tactical Brand Women’s Stryke Style #64386 Pants, \nsizes 0-20, regular and long length, various colors",20,"Each",{"v":0,"d":"$0.00"},{"v":0,"d":"$0.00"},{"$f":"(20*F30)+G30","v":{"v":0,"d":"$0.00"}}]
[null,null,"                                                                                                                                                                                                                                                                  SECTION 2 Total",{"$nulls":4},{"$f":"SUM(H28,H30)","v":{"v":0,"d":"$0.00"}}]
[]
[13,null,"SECTION 3:  Outerwear"]
[]
[14,"Land's End or Equivalent","Land's End Brand 3 in 1 Jackets for men and women in sizes PXS-TXXXL \nin various colors with logo on left chest of all 3 items",10,"Each",{"v":0,"d":"$0.00"},{"v":0,"d":"$0.00"},{"$f":"(10*F35)+G35","v":{"v":0,"d":"$0.00"}}]
[]
[15,"Land's End or Equivalent","Land's End Brand Cotton Sweater V-Neck and Round neck Vests for men and women, \nXS-XXXLT, various colors, logo on left chest",20,"Each",{"v":0,"d":"$0.00"},{"v":0,"d":"$0.00"},{"$f":"(20*F37)+G37","v":{"v":0,"d":"$0.00"}}]
[]
[16,"Land's End or Equivalent","Land's End Brand Cotton Cardigan Sweaters for men and women, \nXS-XXXLT, various colors, logo on left chest",30,"Each",{"v":0,"d":"$0.00"},{"v":0,"d":"$0.00"},{"$f":"(30*F39)+G39","v":{"v":0,"d":"$0.00"}}]
[]
[17,"WearGuard or Equivalent","WearGuard cuffed knit hats tan with navy logo",20,"Each",{"v":0,"d":"$0.00"},{"v":0,"d":"$0.00"},{"$f":"(20*F41)+G41","v":{"v":0,"d":"$0.00"}}]
[]
[18,"WearGuard or Equivalent","WearGuard cuffed knit hats navy with white logo",20,"Each",{"v":0,"d":"$0.00"},{"v":0,"d":"$0.00"},{"$f":"(20*F43)+G43","v":{"v":0,"d":"$0.00"}}]
[]
[19,null,"Winter stretch knit  gloves for men and women S-XL ",20,"Each",{"v":0,"d":"$0.00"},{"v":0,"d":"$0.00"},{"$f":"(20*F45)+G45","v":{"v":0,"d":"$0.00"}}]
[]
[20,"WearGuard or Equivalent","WearGuard Flex Fit Cotton Twill Caps, sand with navy logo, sizes SM-XLG",20,"Each",{"v":0,"d":"$0.00"},{"v":0,"d":"$0.00"},{"$f":"(20*F47)+G47","v":{"v":0,"d":"$0.00"}}]
[]
[21,"WearGuard or Equivalent","WearGuard Flex Fit Cotton Twin Caps, navy with white logo, sizes SM-XLG",20,"Each",{"v":0,"d":"$0.00"},{"v":0,"d":"$0.00"},{"$f":"(20*F49)+G49","v":{"v":0,"d":"$0.00"}}]
[]
[22,"Condor Brand or Equivalent","Condor  Brand Traffic Zipper Vest, Yellow/Green, Silver, Type R, Class 2, Unisex SM-XXXLG, logo on left chest and INSPECTION SERVICES  on back",10,"Each",{"v":0,"d":"$0.00"},{"v":0,"d":"$0.00"},{"$f":"(10*F51)+G51","v":{"v":0,"d":"$0.00"}}]
[]
[null,null,"                                                                                                               Section 3 Total",{"$nulls":4},{"$f":"SUM(H35,H37,H39,H41,H43,H45,H47,H47,H47,H51)","v":{"v":0,"d":"$0.00"}}]
[null,null,"                                                                                                           Sections 1-3 Total",{"$nulls":4},{"$f":"SUM(H25,H31,H53)","v":{"v":0,"d":"$0.00"}}]
[]
[null,null,"Catalog website ________________________________________________________"]
[]
[null,null,"Percentage Discount on Catolog Prices Not Specifically Listed Above _________________%"]
[]
[null,null,"Shipping Cost Structure for Additional Items:","Cost"]
[null,null,"$0-$100"]
[null,null,"$100-$500"]
[null,null,"$500-$1000"]
[null,null,"$1000+"]